Cogmind - Beta 17 @@@ ROGUE MODE // 2026.07.12 @ 02:46:48 Player: Smol John Result: Self-destructed Performance ------------- Evolutions (2) 1000 Regions Visited (4) 800 Robots Destroyed (15) 75 Value Destroyed (497) 497 Prototype IDs (0) 0 Alien Tech Used (0) 0 Bonus (25) 25 TOTAL SCORE: 2397 Bonus ------- Follower Combat Kills 25 Cogmind --------- Core Integrity 550/550 Matter 293/300 Energy 160/160 System Corruption 0% Temperature Cool (0) Movement Treading (160) Location -8/Materials Parts ------- > --- POWER (1) -------- Light Nuclear Core > --- PROPULSION (4) --- Light Treads Light Treads > --- UTILITY (4) ------ Medium Storage Unit > --- WEAPON (2) ------- Small Laser Particle Gun > --- INVENTORY (10) --- Light Ion Engine Light Nuclear Core Aluminum Leg Aluminum Leg Compact Wheel Small Storage Unit Large Storage Unit Improved Terrain Scanner Power Shielding Grenade Launcher Peak State ------------ > --- POWER ------------ Light Nuclear Core > --- PROPULSION ------- Aluminum Leg Aluminum Leg > --- UTILITY ---------- Small Storage Unit Medium Storage Unit > --- WEAPON ----------- Small Laser Assault Rifle > --- INVENTORY -------- Light Ion Engine Light Treads Light Treads Wheel Compact Wheel Improved Terrain Scanner Power Shielding Grenade Launcher [Rating: 10] Favorites ----------- Power Light Nuclear Core Engine Ion Engine Power Core Light Nuclear Core Propulsion Aluminum Leg Treads Light Treads Leg Aluminum Leg Utility Medium Storage Unit Storage Medium Storage Unit Weapon Assault Rifle Energy Gun Small Laser Ballistic Gun Assault Rifle Launcher Grenade Launcher Build | -11 -10 -10 -10 -8 ------- Run | Yrd Mat Min Sub Mat Slots Evolved 4 | . . . . 4 Power . | . . . . . Propulsion 2 | . . . . 2 Utility 2 | . . . . 2 Weapon . | . . . . . Parts Attached 17 | 7 5 5 . . Power 4 | 2 1 1 . . Engine 2 | 2 . . . . Core 2 | . 1 1 . . Reactor . | . . . . . Propulsion 6 | 2 1 3 . . Treads 2 | . . 2 . . Leg 4 | 2 1 1 . . Wheel . | . . . . . Hover . | . . . . . Flight . | . . . . . Utility 2 | 1 1 . . . Device . | . . . . . Storage 2 | 1 1 . . . Processor . | . . . . . Hackware . | . . . . . Protection . | . . . . . Artifact . | . . . . . Weapon 5 | 2 2 1 . . Energy Gun 2 | . 1 1 . . Energy Cannon . | . . . . . Ballistic Gun 2 | 2 . . . . Ballistic Cannon . | . . . . . Launcher 1 | . 1 . . . Special Weapon . | . . . . . Impact Weapon . | . . . . . Slashing Weapon . | . . . . . Piercing Weapon . | . . . . . Special Melee Weapon . | . . . . . Unidentified Prototypes . | . . . . . Parts Lost 4 | . 1 3 . . Power . | . . . . . Propulsion 2 | . . 2 . . Utility . | . . . . . Weapon 2 | . 1 1 . . Highest Loss Streak 3 | . 1 3 . . To Critical Strikes . | . . . . . Average Backups 8 | 3 8 9 10 . Power 1 | . 1 1 2 . Propulsion 3 | 2 4 2 3 . Utility 2 | . 1 4 4 . Weapon 1 | . 1 . 1 . Tool/Special . | . . . . . Unused Backups 6 | . . 1 . 5 Power . | . . . . . Propulsion 3 | . . 1 . 2 Utility 3 | . . . . 3 Weapon . | . . . . . Tool/Special . | . . . . . Average Slot Usage (%) 82 | . 84 80 85 . Engine 3 | . 8 . . . Core 10 | . 5 14 14 . Treads 12 | . . 19 28 . Leg 14 | . 28 7 . . Storage 14 | . 14 14 14 . Energy Gun 14 | . 6 18 28 . Ballistic Gun 10 | . 21 3 . . Launcher 1 | . . 2 . . Peak Build Rating 10 | 6 10 10 10 . Average Rating 8 | 4 7 9 10 . On Entrance 7 | . 6 9 10 10 Avg Prop Armor Cover (%) . | . . . . . Naked Turns . | . . . . . Heaviest Build 19 | 14 18 19 19 . Greatest Support 40 | 20 20 40 40 . Greatest Overweight (x) 5 | 2 . 5 . . Average Overweight (x) . | . . . . . Largest Inventory Capacity 10 | 8 10 10 10 . Average Capacity 9 | 6 8 10 10 . Most Carried 10 | 6 10 10 10 . Average Carried 8 | 3 8 9 10 . Final Capacity 10 | 8 10 10 10 10 Final Carried 10 | 6 10 10 10 10 Class Distribution -------------------- 100% | Mutant Dominant Class ---------------- Mutant | -10/Materials Mutant | -10/Mines Mutant | -10/Subcaves Mutant | -8/Materials Resources | -11 -10 -10 -10 -8 ----------- Run | Yrd Mat Min Sub Mat Matter Collected 567 | 238 203 126 . . Remotely . | . . . . . Salvage Created 573 | . 305 268 . . Parts 31 | . 16 15 . . Haulers Intercepted . | . . . . . Recyclers Shooed . | . . . . . Parts Field Recycled . | . . . . . Retrieved Matter . | . . . . . Parts Self-Destructed . | . . . . . Prevented . | . . . . . Parts Restored . | . . . . . Kills | -11 -10 -10 -10 -8 ------- Run | Yrd Mat Min Sub Mat Combat Hostiles Destroyed 13 | . 7 6 . . Guns 9 | . 5 4 . . AOE 4 | . 2 2 . . Classes Destroyed 3 | . 3 . . . Tunneler 2 | . 1 1 . . Swarmer 1 | . 1 . . . Grunt 12 | . 6 6 . . Best Kill Streak 3 | . 3 2 . . Combat Bots Only 2 | . 2 2 . . Max Kills in Single Turn 2 | . 2 2 . . Gunslinging . | . . . . . Exploded 2 | . 2 2 . . Melee . | . . . . . Uniques/NPCs Destroyed . | . . . . . Combat | -11 -10 -10 -10 -8 -------- Run | Yrd Mat Min Sub Mat Hostile Shots Fired 87 | . 40 47 . . Missed 19 | . 8 11 . . Hits 68 | . 32 36 . . Projectile 68 | . 32 36 . . AOE 2 | . . . 2 . Critical Strikes 2 | . 1 1 . . Damage Taken 926 | . 407 477 42 . Core 169 | . 54 104 11 . Absorbed by Shields . | . . . . . Core Remaining (%) 66 | 100 . . 32 . Volleys Fired 59 | . 24 35 . . Largest 2 | . 2 2 . . Hottest 70 | . 40 70 . . Shots Fired 91 | . 46 45 . . Gun 86 | . 45 41 . . Cannon . | . . . . . Launcher 5 | . 1 4 . . Special . | . . . . . Kinetic 51 | . 45 6 . . Thermal 35 | . . 35 . . Explosive 5 | . 1 4 . . Electromagnetic . | . . . . . Robot Hit Streak 7 | . 6 7 . . Robot Miss Streak 3 | . 3 1 . . Penetration Max . | . . . . . Secondary Targets . | . . . . . Shots Hit Robots 56 | . 25 31 . . Core Hits 32 | . 17 15 . . Critical Kills . | . . . . . Critical Parts Destroyed . | . . . . . Critical Strikes . | . . . . . Melee Attacks . | . . . . . Impact . | . . . . . Slashing . | . . . . . Piercing . | . . . . . Sneak Attacks . | . . . . . Combat Hostiles . | . . . . . Follow-up Attacks . | . . . . . Damage Inflicted 930 | 13 397 520 . . Guns 683 | . 325 358 . . Cannons . | . . . . . Explosions 232 | . 72 160 . . Melee . | . . . . . Ramming 15 | 13 . 2 . . Kinetic 390 | . 325 65 . . Thermal 293 | . . 293 . . Explosive 232 | . 72 160 . . Electromagnetic . | . . . . . Impact . | . . . . . Slashing . | . . . . . Piercing . | . . . . . Highest Corruption . | . . . . . Average Corruption . | . . . . . Corruption Purged . | . . . . . Corruption Blocked . | . . . . . Overload Shots . | . . . . . Overflow Damage . | . . . . . Projectiles . | . . . . . Explosions . | . . . . . Melee . | . . . . . Knockbacks . | . . . . . Impact . | . . . . . Kinetic . | . . . . . Secondary . | . . . . . Self-Inflicted Damage 14 | . . 14 . . Shots 1 | . . 1 . . Rammed 2 | . . 2 . . Targets Rammed 5 | 2 . 3 . . Kicked 2 | 2 . . . . Crushed 1 | . . 1 . . Highest Temperature 221 | . 17 221 . . Average Temperature 60 | . 3 70 . . Received Heat Transfer 504 | . 231 273 . . Siege Activations . | . . . . . Martial Activations . | . . . . . Shielding Activations . | . . . . . Robots Disrupted . | . . . . . Combat Hostiles . | . . . . . Robots Corrupted . | . . . . . Combat Hostiles . | . . . . . Parts Fried . | . . . . . Impact Corruptions . | . . . . . Robots Melted . | . . . . . Combat Hostiles . | . . . . . Parts Melted . | . . . . . Heat Transferred 650 | . . 650 . . Parts Sabotaged . | . . . . . Parts Stolen . | . . . . . Parts Stripped . | . . . . . Power Chain Reactions . | . . . . . Alert | -11 -10 -10 -10 -8 ------- Run | Yrd Mat Min Sub Mat Maximum Alert Level . | . . . . . Low Security (%) 100 | 100 100 100 . . Level 1 . | . . . . . Level 2 . | . . . . . Level 3 . | . . . . . Level 4 . | . . . . . Level 5 . | . . . . . High Security . | . . . . . Max Security . | . . . . . Peak Influence 95 | . 95 95 . . Initial 8 | . . 8 . . Average 26 | . 43 21 . . Influence Increases 416 | . 183 233 . . Destroy 0b10 Robot/C 280 | . 140 140 . . Destroy 0b10 Robot/NC 10 | . 5 5 . . Destroy Leader 50 | . 20 30 . . Allied During Kill 4 | . . 4 . . Successful Hack 8 | . 8 . . . Destroy Structure 34 | . 10 24 . . Lose Combat Pursuer 30 | . . 30 . . Influence Decreases 416 | . 160 185 71 . Entered New Map 53 | . . 15 38 . Time Decay 330 | . 150 160 20 . Lost Part 20 | . 10 10 . . Lost Ally 13 | . . . 13 . Squads Dispatched 1 | . . 1 . . Investigation . | . . . . . Extermination . | . . . . . Reinforcement . | . . . . . Assault 1 | . . 1 . . Garrison . | . . . . . Intercept . | . . . . . Searches Triggered . | . . . . . Construction Impeded . | . . . . . Haulers Reinforced . | . . . . . Active Scanning Responses . | . . . . . Cargo Convoy Interrupts . | . . . . . Stealth | -11 -10 -10 -10 -8 --------- Run | Yrd Mat Min Sub Mat Distress Signals 1 | . 1 . . . Communications Jammed . | . . . . . Distress Signals . | . . . . . Times Spotted 23 | . 11 10 2 . Peak Tracking Total 3 | . 3 3 2 . Tactical Retreats 2 | . . 2 . . Traps | -11 -10 -10 -10 -8 ------- Run | Yrd Mat Min Sub Mat Traps Triggered . | . . . . . Indirectly . | . . . . . Trap Hack Attempts . | . . . . . Triggered . | . . . . . Disarmed . | . . . . . Reprogrammed . | . . . . . Reused . | . . . . . Traps Extracted . | . . . . . Installed . | . . . . . Triggered . | . . . . . Machines | -11 -10 -10 -10 -8 ---------- Run | Yrd Mat Min Sub Mat Machines Disabled . | . . . . . Max in Single Turn . | . . . . . Machines Repaired . | . . . . . Machines Dismantled . | . . . . . Machines Sabotaged . | . . . . . Overloaded Fab Kills . | . . . . . Hacking | -11 -10 -10 -10 -8 --------- Run | Yrd Mat Min Sub Mat Machines Accessed 2 | . 2 . . . Terminals 2 | . 2 . . . Fabricators . | . . . . . Repair Stations . | . . . . . Recycling Units . | . . . . . Scanalyzers . | . . . . . Garrison Access . | . . . . . Total Hacks 3 | . 3 . . . Successful 1 | . 1 . . . Failed 2 | . 2 . . . Catastrophic 1 | . 1 . . . Database Lockouts . | . . . . . Manual 3 | . 3 . . . Terminals 3 | . 3 . . . Fabricators . | . . . . . Repair Stations . | . . . . . Recycling Units . | . . . . . Scanalyzers . | . . . . . Garrison Access . | . . . . . Terminal Hacks 1 | . 1 . . . Branch Access Points 1 | . 1 . . . Fabricator Hacks . | . . . . . Repair Station Hacks . | . . . . . Recycling Unit Hacks . | . . . . . Scanalyzer . | . . . . . Garrison Access Hacks . | . . . . . Unauthorized Hacks . | . . . . . Terminals . | . . . . . Fabricators . | . . . . . Repair Stations . | . . . . . Recycling Units . | . . . . . Scanalyzers . | . . . . . Garrison Access . | . . . . . Data Cores Recovered . | . . . . . Used . | . . . . . Hacking Detections 1 | . 1 . . . Full Trace Events . | . . . . . Feedback Events . | . . . . . Feedback Blocked . | . . . . . Robot Schematics Acquired . | . . . . . Robots Built . | . . . . . Authchips . | . . . . . Time . | . . . . . Total Robot Build Rating . | . . . . . Part Schematics Acquired . | . . . . . Parts Built . | . . . . . Authchips . | . . . . . Time . | . . . . . Total Part Build Rating . | . . . . . Part Studies Acquired . | . . . . . Parts Repaired . | . . . . . Time . | . . . . . Parts Recycled . | . . . . . Recycled Matter . | . . . . . Retrieved Matter . | . . . . . Retrieved Components . | . . . . . Parts Scanalyzed . | . . . . . Part Schematics Acquired . | . . . . . Parts Damaged . | . . . . . Bothacking | -11 -10 -10 -10 -8 ------------ Run | Yrd Mat Min Sub Mat Used RIF Installer . | . . . . . Robots Hacked . | . . . . . Non-combat . | . . . . . Combat . | . . . . . Robot Hacks Applied . | . . . . . Relay Couplers Released . | . . . . . Fabnet Peak Effective % . | . . . . . Robots Rewired . | . . . . . Allies Hacked . | . . . . . Hacks Repelled . | . . . . . Allies | -11 -10 -10 -10 -8 -------- Run | Yrd Mat Min Sub Mat Total Allies 1 | . . 1 . . Largest Group 1 | . . 1 1 . Highest-Rated Group 31 | . . 31 31 . Highest-Rated Ally 31 | . . 31 31 . Total Orders . | . . . . . Ally Attacks 3 | . . 1 2 . Total Damage 66 | . . 22 44 . Kills 1 | . . 1 . . Allies Corrupted . | . . . . . Allies Melted . | . . . . . Intel | -11 -10 -10 -10 -8 ------- Run | Yrd Mat Min Sub Mat Active Infowar (turns) . | . . . . . Robot Analysis Total . | . . . . . Derelict Logs Recovered . | . . . . . Drone Launches . | . . . . . Drone Recoveries . | . . . . . Exploration | -11 -10 -10 -10 -8 ------------- Run | Yrd Mat Min Sub Mat Turns Passed 1019 | 107 345 506 61 . Spaces Moved 601 | 78 210 274 39 . Core 19 | 17 . 2 . . Treads 226 | . . 187 39 . Legs 356 | 61 210 85 . . Wheels . | . . . . . Hover . | . . . . . Flight . | . . . . . Fastest Speed 50 | 50 120 120 160 . Average Speed 135 | 115 120 149 160 . Slowest Speed 300 | 190 120 300 160 . Overloaded Moves . | . . . . . Propulsion Burnouts . | . . . . . Robots Hopped . | . . . . . Potential Cave-ins . | . . . . . Cave-ins Triggered . | . . . . . Exploration Rate (%) 20 | 5 43 48 5 1 Regions Visited 4 Branch Regions 2 Pre-discovered Areas 1 | . . . 1 . Known Exits Taken 1 | . 1 . . . Unknown Exits Taken 3 | 1 . 1 1 . Scrap Searched . | . . . . . Spaces Dug . | . . . . . Terrain Destroyed 33 | . 9 24 . . Melee . | . . . . . Projectile . | . . . . . AOE 33 | . 9 24 . . Terrain Rammed . | . . . . . Walls Destroyed . | . . . . . Machines Disabled . | . . . . . Actions | -11 -10 -10 -10 -8 --------- Run | Yrd Mat Min Sub Mat Total 708 | 91 257 322 38 . Wait 12 | . 12 . . . Move 597 | 77 209 273 38 . Hop . | . . . . . Pick Up 11 | 5 4 2 . . Fast Attach 8 | 6 1 1 . . Attach 3 | . 1 2 . . Detach 1 | . 1 . . . Swap 9 | 1 3 5 . . Drop 3 | . 2 1 . . Fire 59 | . 24 35 . . Melee . | . . . . . Ram . | . . . . . Kick 2 | 2 . . . . Crush 3 | . . 3 . . Escape Stasis . | . . . . . Rewire . | . . . . . Trap . | . . . . . Miscellaneous . | . . . . . Route ------- -11/Scrapyard -10/Materials (discovered 2 exits: *Min x2) -10/Mines (discovered 2 exits: [*Mat] / [*Sub]) -10/Subcaves -8/Materials History --------- Turn | Location | Event 14 | -11/Scrapyard | Discovered new exit (range 15) 108 | -11/Scrapyard | Entered Materials 333 | -10/Materials | Identified exit to Mines 334 | -10/Materials | Build established: Mutant 453 | -10/Materials | Entered Mines 586 | -10/Mines | Core integrity fell below 50% 618 | -10/Mines | Lost 3 parts (2n1w) 664 | -10/Mines | Joined a pair of Derelicts in attacking an 0b10 outpost 860 | -10/Mines | Met a Derelict testing a Signal Generator 919 | -10/Mines | Discovered new exit (range 11) 949 | -10/Mines | Discovered new exit (range 5) 959 | -10/Mines | Entered Subcaves 959 | -10/Subcaves | Accompanied by 1 ally 997 | -10/Subcaves | Learned location of Zion (-6) 997 | -10/Subcaves | Met a Zionite searching for "candidates" 999 | -10/Subcaves | Discovered new exit (range 9) 1020 | -10/Subcaves | Entered Materials 1020 | -8/Materials | Evolved 4 slots: Propulsion x2, Utility x2 1020 | -8/Materials | Self-destructed Last Messages --------------- 00946_ U-05 Engineer builds a Wall. 00949_ EXIT=FOUND 00950_ U-05 Engineer lays Concrete. LOCATION=UNKNOWN AMBIENT_HEAT=-10 GOAL=ESCAPE 00986_ OQ-UEU(z): "She is not going to be happy we haven't found any suitable candidates yet." 00997_ OQ-UEU(z): "Hey you! It's really dangerous down here, I feel that you could die at any moment. For your health and safety might I suggest a trip to Zion?" World map updated: -6/Zion. 00999_ EXIT=FOUND 01013_ OQ-UEU(z) destroyed. 01013_ Y6-PUU(z) destroyed. 01016_ ZO-8ZI(g) destroyed. PARAMETERS=PROPULSION+2,UTILITY+2 LOCATION=UNKNOWN GOAL=ESCAPE Map ----- +----------------------------------------------------+ | ?????????????????????????????????????????????????? | | ?????????????????????????????????????????????????? | | ?????????????????????????????????????????????????? | | ?????????????????????????????????????????????????? | | ?????????????????????????????????????????????????? | | ?????????????????????????????????????????????????? | | ?????????????????????????????????????????????????? | | ?????????????????????????????????????????????????? | | ?????????????????????????????????????????????????? | | ?????????????????????????????????????????????????? | | ???????????????????????? ? ??????????????????????? | | ???????????????????????? ? ??????????????????????? | | ???????????????????????? ??????????????????????? | | ???????????????????????# #?????????????????????? | | ??????????????????????## ##????????????????????? | | ??????????????????????# #????????????????????? | | ?????????????????????? #????????????????????? | | ??????????????????????? " ?????????????????????? | | ??????????????????????? ?????????????????????? | | ??????????????????????? ?????????????????????? | | ???????????????????????# #?????????????????????? | | ???????????????????????# #?????????????????????? | | ???????????????????????# #?????????????????????? | | ???????????????????????# #?????????????????????? | | ???????????????????????# #?????????????????????? | | ???????????????????????# @ #?????????????????????? | | ???????????????????????# #?????????????????????? | | ???????????????????????#####?????????????????????? | | ?????????????????????????????????????????????????? | | ?????????????????????????????????????????????????? | | ?????????????????????????????????????????????????? | | ?????????????????????????????????????????????????? | | ?????????????????????????????????????????????????? | | | | | | | | | | | | | | | | | | | | | | | | | | | | | | | | | | | +----------------------------------------------------+ Best States ------------- Heat Dissipation 25 Energy Generation 14 Energy Capacity 250 Matter Stores 300 Matter Capacity 300 Sight Range 16 Terrain Scan Density 10 Evasion (%) 55 Recoil Reduction 2 Item Schematics ----------------- None Robot Schematics ------------------ None Fabricated ------------ Nothing Repaired ---------- Nothing Studied --------- None Alien Tech Used ----------------- None Achievements -------------- None Challenges ------------ None Game ------ Seed ImpactEtherialShovel Manual? 0 Play Time 00:07:10 Cumulative 29.7 hours Start 2026.07.12 @ 02:39:41 End 2026.07.12 @ 02:46:48 Sessions 1 Manual Loads 0 Difficulty Rogue Special Mode None Game No. 43 Rogue 43 Adventurer 0 Explorer 0 Win Type - Total 0 Types 0/0/0/0/0/0/0/0/0/0 Lore% 28 Gallery% 28 Achievement% 21 Wizard Run 0 Options --------- Layout 1 ASCII 0 Keyboard 0 Movement Numpad Keybinds 0 Fullscreen 1 Font 20/SmallcapsGlow Map View 50x35 Zoom Use 0% Tactical HUD 1 Map Filters NONE Filters NONE Steam 1 RUN: 5fa7c11a-213b-45ca-8928-b135934489f2